fUSD/lending_fUSD_20250505
["ID","MTS","AMOUNT","RATE_DAILY","PERIOD"]
[359982835,1746461896464,-450.0,0.00019854,2]
[359982836,1746461896490,-450.0,0.00019854,2]
[359982837,1746461896517,-511.77386831,0.00019854,2]
[359982838,1746461896543,-450.0,0.00019854,2]
[359982839,1746461896570,-709.9,0.00019854,2]
[359982840,1746461896596,-709.9,0.00019854,2]
[359982841,1746461896617,-450.0,0.00019854,2]
[359982842,1746461896642,-500.0,0.00019854,2]
[359982843,1746461896663,-450.0,0.00019854,2]
[359982844,1746461896684,-682.61,0.00019854,2]
[359982845,1746461896954,-682.61,0.00019854,2]
[359982846,1746461896976,-450.0,0.00019854,2]
[359982847,1746461896999,-450.0,0.00019854,2]
[359982848,1746461897021,-450.0,0.00019854,2]
[359982849,1746461897044,-308.76,0.00019854,2]
[359982850,1746461897068,-1739.2,0.00019854,2]
[359982851,1746461897091,-1739.2,0.00019854,2]
[359982852,1746461897112,-450.0,0.00019854,2]
[359982853,1746461897135,-450.0,0.00019854,2]
[359982854,1746461897156,-450.0,0.00019854,2]
[359982855,1746461897179,-3761.91,0.00019854,2]
[359982856,1746461897201,-3761.91,0.00019854,2]
[359982857,1746461897224,-450.0,0.00019854,2]
[359982858,1746461897246,-514.20859022,0.00019854,2]
[359982859,1746461897269,-450.0,0.00019854,2]
[359982860,1746461897292,-450.0,0.00019854,2]
[359982861,1746461897315,-450.0,0.00019854,2]
[359982862,1746461897338,-450.0,0.00019854,2]
[359982863,1746461897361,-450.0,0.00019854,2]
[359982864,1746461897383,-450.0,0.00019854,2]
[359982865,1746461897405,-450.0,0.00019854,2]
[359982866,1746461897426,-450.0,0.00019854,2]
[359982867,1746461897448,-324.09331515,0.00019854,2]
[359982868,1746461897470,-803.42,0.00019854,2]
[359982869,1746461897491,-803.42,0.00019854,2]
[359982870,1746461897512,-450.0,0.00019854,2]
[359982871,1746461897533,-450.0,0.00019854,2]
[359982872,1746461897554,-450.0,0.00019854,2]
[359982873,1746461897574,-6126.92,0.00019854,2]
[359982874,1746461897594,-6126.92,0.00019854,2]
[359982875,1746461897616,-450.0,0.00019854,2]
[359982876,1746461897636,-450.0,0.00019854,2]
[359982877,1746461897657,-390.29,0.00019854,2]
[359982878,1746461897678,-450.0,0.00019854,2]
[359982879,1746461897699,-450.0,0.00019854,2]
[359982880,1746461897719,-573.07,0.00019854,2]
[359982881,1746461897741,-450.0,0.00019854,2]
[359982882,1746461897762,-573.07,0.00019854,2]
[359982883,1746461897783,-178.49233392,0.00019854,2]
[359982884,1746461897808,-450.0,0.00019854,2]
[359982885,1746461897829,-357.99,0.00019854,2]
[359982886,1746461897850,-450.0,0.00019854,2]
[359982887,1746461897871,-350.71526604,0.00019854,2]
[359982888,1746461897892,-450.0,0.00019854,2]
[359982889,1746461897913,-450.0,0.00019854,2]
[359982890,1746461897935,-450.0,0.00019854,2]
[359982891,1746461897957,-450.0,0.00019854,2]
[359982892,1746461897979,-450.0,0.00019854,2]
[359982893,1746461898001,-450.0,0.00019854,2]
[359982894,1746461898022,-450.0,0.00019854,2]
[359982895,1746461898044,-450.0,0.00019854,2]
[359982896,1746461898066,-450.0,0.00019854,2]
[359982897,1746461898088,-450.0,0.00019854,2]
[359982898,1746461898110,-450.0,0.00019854,2]
[359982899,1746461898132,-450.0,0.00019854,2]
[359982900,1746461898153,-450.0,0.00019854,2]
[359982901,1746461898174,-450.0,0.00019854,2]
[359982902,1746461898195,-450.0,0.00019854,2]
[359982903,1746461898216,-450.0,0.00019854,2]
[359982904,1746461898237,-1656.37,0.00019854,2]
[359982905,1746461898259,-1656.37,0.00019854,2]
[359982906,1746461898281,-450.0,0.00019854,2]
[359982907,1746461898303,-450.0,0.00019854,2]
[359982908,1746461898325,-450.0,0.00019854,2]
[359982909,1746461898346,-450.0,0.00019854,2]
[359982910,1746461898368,-450.0,0.00019854,2]
[359982911,1746461898390,-450.0,0.00019854,2]
[359982912,1746461898413,-450.0,0.00019854,2]
[359982913,1746461898435,-568.85445459,0.00019854,2]
[359982914,1746461898458,-2508.1,0.00019855,2]
[359982915,1746461898481,-450.0,0.00019855,2]
[359982916,1746461898502,-595.64,0.00019855,2]
[359982917,1746461898524,-450.0,0.00019855,2]
[359982918,1746461898546,-450.0,0.00019855,2]
[359982919,1746461898568,-1534.66,0.00019855,2]
[359982920,1746461898589,-450.0,0.00019855,2]
[359982921,1746461898611,-1501.03,0.00019855,2]
[359982922,1746461898633,-449.88415063,0.00019855,2]
[359982923,1746461898654,-758.26,0.00019855,2]
[359982924,1746461898678,-450.0,0.00019855,2]
[359982925,1746461898701,-450.0,0.00019855,2]
[359982926,1746461898723,-450.0,0.00019855,2]
[359982927,1746461898745,-450.0,0.00019855,2]
[359982928,1746461898769,-1112.77,0.00019855,2]
[359982929,1746461898795,-1576.98,0.00019855,2]
[359982930,1746461898818,-450.0,0.00019855,2]
[359982931,1746461898840,-547.98,0.00019855,2]
[359982932,1746461898864,-26232.82,0.00019855,2]
[359982933,1746461898886,-33540.36,0.00019855,2]
[359982934,1746461898908,-450.0,0.00019855,2]
[359982935,1746461898932,-534.48322281,0.00019855,2]
[359982936,1746461898955,-695.36,0.00019855,2]
[359982937,1746461898977,-450.0,0.00019855,2]
[359982938,1746461898998,-2477.91,0.00019855,2]
[359982939,1746461899020,-11717.04,0.00019855,2]
[359982940,1746461899043,-450.0,0.00019855,2]
[359982941,1746461899066,-450.0,0.00019855,2]
[359982942,1746461899090,-450.0,0.00019855,2]
[359982943,1746461899112,-709.9,0.00019855,2]
[359982944,1746461899133,-531.53,0.00019855,2]
[359982945,1746461899155,-682.61,0.00019855,2]
[359982946,1746461899176,-450.0,0.00019855,2]
[359982947,1746461899199,-1739.2,0.00019855,2]
[359982948,1746461899220,-450.0,0.00019855,2]
[359982949,1746461899243,-3761.91,0.00019855,2]
[359982950,1746461899264,-176.04,0.00019855,2]
[359982951,1746461899286,-450.0,0.00019855,2]
[359982952,1746461899309,-803.42,0.00019855,2]
[359982953,1746461899330,-377.01656966,0.00019855,2]
[359982954,1746461899351,-6126.92,0.00019855,2]
[359982955,1746461899371,-573.07,0.00019855,2]
[359982956,1746461899392,-450.0,0.00019855,2]
[359982957,1746461899413,-450.0,0.00019855,2]
[359982958,1746461899434,-450.0,0.00019855,2]
[359982959,1746461899456,-450.0,0.00019855,2]
[359982960,1746461899479,-230.21,0.00019855,2]
[359982961,1746461899502,-1656.37,0.00019855,2]
[359982962,1746461899524,-150.0,0.00019855,2]
[359982963,1746461899547,-450.0,0.00019855,2]
[359982964,1746461899570,-450.0,0.00019855,2]
[359982965,1746461899591,-595.64,0.00019856,2]
[359982966,1746461899612,-450.0,0.00019856,2]
[359982967,1746461899634,-450.0,0.00019856,2]
[359982968,1746461899654,-450.0,0.00019856,2]
[359982969,1746461899677,-150.0,0.00019856,2]
[359982970,1746461899699,-450.0,0.00019856,2]
[359982971,1746461899721,-450.0,0.00019856,2]
[359982972,1746461899742,-450.0,0.00019856,2]
[359982973,1746461899762,-547.98,0.00019856,2]
[359982974,1746461899784,-450.0,0.00019856,2]
[359982975,1746461899810,-450.0,0.00019856,2]
[359982976,1746461899834,-450.0,0.00019856,2]
[359982977,1746461899855,-450.0,0.00019856,2]
[359982978,1746461899878,-450.0,0.00019856,2]
[359982979,1746461900029,-150.0,0.00019858,2]
[359982980,1746461900052,-213.14676432,0.00019858,2]
[359982981,1746461900075,-150.0,0.00019863,2]
[359982982,1746461900097,-595.64,0.00019868,2]
[359982983,1746461900119,-450.0,0.00019868,2]
[359982984,1746461900141,-450.0,0.00019868,2]
[359982985,1746461900162,-450.0,0.00019868,2]
[359982986,1746461900184,-450.0,0.00019868,2]
[359982987,1746461900205,-450.0,0.00019868,2]
[359982988,1746461900226,-450.0,0.00019868,2]
[359982989,1746461900248,-450.0,0.00019868,2]
[359982990,1746461900269,-547.98,0.00019868,2]
[359982991,1746461900290,-450.0,0.00019868,2]
[359982992,1746461900311,-450.0,0.00019868,2]
[359982993,1746461900332,-450.0,0.00019868,2]
[359982994,1746461900353,-450.0,0.00019868,2]
[359982995,1746461900376,-500.0,0.00019868,2]
[359982996,1746461900398,-450.0,0.00019868,2]
[359982997,1746461900419,-450.0,0.00019868,2]
[359982998,1746461900440,-450.0,0.00019868,2]
[359982999,1746461900463,-450.0,0.00019868,2]
[359983000,1746461900484,-450.0,0.00019868,2]
[359983001,1746461900506,-450.0,0.00019868,2]
[359983002,1746461900528,-450.0,0.00019868,2]
[359983003,1746461900550,-450.0,0.00019868,2]
[359983004,1746461900574,-450.0,0.00019868,2]
[359983005,1746461900595,-450.0,0.00019868,2]
[359983006,1746461900616,-505.09646581,0.00019873,2]
[359983007,1746461900638,-500.0,0.00019873,2]
[359983008,1746461900658,-500.0,0.00019873,2]
[359983009,1746461900681,-161.09167094,0.00019873,2]
[359983010,1746461900703,-500.0,0.00019873,2]
[359983011,1746461900724,-500.0,0.00019873,2]
[359983012,1746461900747,-213.14676432,0.00019879,2]
[359983013,1746461900770,-150.0,0.0001988,2]
[359983014,1746461900798,-2508.1,0.00019885,2]
[359983015,1746461900821,-450.0,0.00019885,2]
[359983016,1746461900844,-1534.66,0.00019885,2]
[359983017,1746461900867,-1501.03,0.00019885,2]
[359983018,1746461900890,-758.26,0.00019885,2]
[359983019,1746461900913,-413.66974328,0.00019885,2]
[359983020,1746461900937,-450.0,0.00019885,2]
[359983021,1746461900962,-1112.77,0.00019885,2]
[359983022,1746461900985,-1576.98,0.00019885,2]
[359983023,1746461901007,-500.0,0.00019885,2]
[359983024,1746461901030,-500.0,0.00019885,2]
[359983025,1746461901052,-500.0,0.00019885,2]
[359983026,1746461901074,-500.0,0.00019885,2]
[359983027,1746461901096,-500.0,0.00019885,2]
[359983028,1746461901118,-500.0,0.00019885,2]
[359983029,1746461901140,-500.0,0.00019885,2]
[359983030,1746461901161,-500.0,0.00019885,2]
[359983031,1746461901184,-500.0,0.00019885,2]
[359983032,1746461901206,-500.0,0.00019885,2]
[359983033,1746461901228,-500.0,0.00019885,2]
[359983034,1746461901251,-500.0,0.00019885,2]
[359983035,1746461901273,-500.0,0.00019885,2]
[359983036,1746461901295,-500.0,0.00019885,2]
[359983037,1746461901318,-500.0,0.00019885,2]
[359983038,1746461901340,-500.0,0.00019885,2]
[359983039,1746461901362,-26232.82,0.00019885,2]
[359983040,1746461901386,-33540.36,0.00019885,2]
[359983041,1746461901407,-500.0,0.00019885,2]
[359983042,1746461901428,-500.0,0.00019885,2]
[359983043,1746461901450,-500.0,0.00019885,2]
[359983044,1746461901472,-500.0,0.00019885,2]
[359983045,1746461901493,-500.0,0.00019885,2]
[359983046,1746461901514,-500.0,0.00019885,2]
[359983047,1746461901536,-500.0,0.00019885,2]
[359983048,1746461901558,-500.0,0.00019885,2]
[359983049,1746461901579,-500.0,0.00019885,2]
[359983050,1746461901601,-500.0,0.00019885,2]
[359983051,1746461901622,-500.0,0.00019885,2]
[359983052,1746461901643,-500.0,0.00019885,2]
[359983053,1746461901663,-500.0,0.00019885,2]
[359983054,1746461901686,-500.0,0.00019885,2]
[359983055,1746461901707,-500.0,0.00019885,2]
[359983056,1746461901728,-500.0,0.00019885,2]
[359983057,1746461901749,-500.0,0.00019885,2]
[359983058,1746461901770,-500.0,0.00019885,2]
[359983059,1746461901795,-500.0,0.00019885,2]
[359983060,1746461901817,-500.0,0.00019885,2]
[359983061,1746461901839,-500.0,0.00019885,2]
[359983062,1746461901860,-500.0,0.00019885,2]
[359983063,1746461901885,-450.0,0.00019885,2]
[359983064,1746461901907,-500.0,0.00019885,2]
[359983065,1746461901930,-500.0,0.00019885,2]
[359983066,1746461901953,-500.0,0.00019885,2]
[359983067,1746461901975,-500.0,0.00019885,2]
[359983068,1746461901998,-500.0,0.00019885,2]
[359983069,1746461902019,-500.0,0.00019885,2]
[359983070,1746461902040,-500.0,0.00019885,2]
[359983071,1746461902061,-500.0,0.00019885,2]
[359983072,1746461902083,-500.0,0.00019885,2]
[359983073,1746461902104,-500.0,0.00019885,2]
[359983074,1746461902126,-500.0,0.00019885,2]
[359983075,1746461902149,-695.36,0.00019885,2]
[359983076,1746461902198,-500.0,0.00019885,2]
[359983077,1746461902219,-500.0,0.00019885,2]
[359983078,1746461902240,-500.0,0.00019885,2]
[359983079,1746461902261,-500.0,0.00019885,2]
[359983080,1746461902282,-539.0,0.00019885,2]
[359983081,1746461902303,-500.0,0.00019885,2]
[359983082,1746461902324,-500.0,0.00019885,2]
[359983083,1746461902346,-500.0,0.00019885,2]
[359983084,1746461902367,-500.0,0.00019885,2]
[359983085,1746461902388,-500.0,0.00019885,2]
[359983086,1746461902408,-500.0,0.00019885,2]
[359983087,1746461902428,-819.0,0.00019885,2]
[359983088,1746461902450,-2477.91,0.00019885,2]
[359983089,1746461902471,-11717.04,0.00019885,2]
[359983090,1746461902493,-450.0,0.00019885,2]
[359983091,1746461902514,-500.0,0.00019885,2]
[359983092,1746461902537,-500.0,0.00019885,2]
[359983093,1746461902557,-709.9,0.00019885,2]
[359983094,1746461902578,-682.61,0.00019885,2]
[359983095,1746461902600,-450.0,0.00019885,2]
[359983096,1746461902623,-1739.2,0.00019885,2]
[359983097,1746461902644,-450.0,0.00019885,2]
[359983098,1746461902666,-3761.91,0.00019885,2]
[359983099,1746461902688,-803.42,0.00019885,2]
[359983100,1746461902709,-6126.92,0.00019885,2]
[359983101,1746461902731,-573.07,0.00019885,2]
[359983102,1746461902752,-450.0,0.00019885,2]
[359983103,1746461902774,-450.0,0.00019885,2]
[359983104,1746461902800,-450.0,0.00019885,2]
[359983105,1746461902823,-1656.37,0.00019885,2]
[359983106,1746461902845,-450.0,0.00019885,2]
[359983107,1746461902867,-450.0,0.00019885,2]
[359983108,1746461902890,-151.0,0.00019887,2]
[359983109,1746461902912,-450.0,0.00019887,2]
[359983110,1746461902935,-450.0,0.00019887,2]
[359983111,1746461902957,-325.751762,0.00019887,2]
[359983112,1746461902982,-500.0,0.00019887,2]
[359983113,1746461903005,-7717.875436,0.00019887,2]
[359983114,1746461903027,-187.07347,0.00019887,2]
[359983115,1746461903050,-450.0,0.00019887,2]
[359983116,1746461903072,-450.0,0.00019887,2]
[359983117,1746461903094,-450.0,0.00019887,2]
[359983118,1746461903117,-311.38,0.00019887,2]
[359983119,1746461903139,-450.0,0.00019887,2]
[359983120,1746461903162,-450.0,0.00019887,2]
[359983121,1746461903184,-450.0,0.00019887,2]
[359983122,1746461903206,-595.64,0.00019888,2]
[359983123,1746461903228,-450.0,0.00019888,2]
[359983124,1746461903249,-566.22,0.00019888,2]
[359983125,1746461903270,-450.0,0.00019888,2]
[359983126,1746461903293,-450.0,0.00019888,2]
[359983127,1746461903316,-450.0,0.00019888,2]
[359983128,1746461903338,-450.0,0.00019888,2]
[359983129,1746461903360,-547.98,0.00019888,2]
[359983130,1746461903381,-450.0,0.00019888,2]
[359983131,1746461903403,-450.0,0.00019888,2]
[359983132,1746461903424,-450.0,0.00019888,2]
[359983133,1746461903446,-450.0,0.00019888,2]
[359983134,1746461903467,-450.0,0.00019888,2]
[359983135,1746461903488,-194.68130024,0.00019888,2]
[359983136,1746461903509,-151.0,0.00019888,2]
[359983137,1746461903531,-668.65185757,0.00019888,2]
[359983138,1746461903554,-2508.1,0.00019895,2]
[359983139,1746461903578,-450.0,0.00019895,2]
[359983140,1746461903601,-450.0,0.00019895,2]
[359983141,1746461903625,-1112.77,0.00019895,2]
[359983142,1746461903647,-26232.82,0.00019895,2]
[359983143,1746461903670,-695.36,0.00019895,2]
[359983144,1746461903693,-450.0,0.00019895,2]
[359983145,1746461903716,-450.0,0.00019895,2]
[359983146,1746461903740,-1739.2,0.00019895,2]
[359983147,1746461903763,-450.0,0.00019895,2]
[359983148,1746461903787,-803.42,0.00019895,2]
[359983149,1746461903815,-6126.92,0.00019895,2]
[359983150,1746461903838,-573.07,0.00019895,2]
[359983151,1746461903862,-450.0,0.00019895,2]
[359983152,1746461903888,-450.0,0.00019895,2]
[359983153,1746461903911,-450.0,0.00019895,2]
[359983154,1746461903934,-1656.37,0.00019895,2]
[359983155,1746461903958,-450.0,0.00019895,2]
[359983156,1746461903982,-450.0,0.00019895,2]
[359983157,1746461904005,-1534.66,0.00019896,2]
[359983158,1746461904028,-1501.03,0.00019896,2]
[359983159,1746461904052,-758.26,0.00019896,2]
[359983160,1746461904077,-1576.98,0.00019896,2]
[359983161,1746461904100,-13037.60469374,0.00019896,2]
[359983162,1746461910642,216.15,0.00018941,2]
[359983163,1746461947369,1600.0,0.0003,30]
[359983164,1746461994127,250.0,0.00018844,2]
[359983165,1746462001170,159.97,0.0003,30]
[359983166,1746462003794,1608.61634751,0.0003,30]
[359983167,1746462007772,209.71015322,0.0003,30]
[359983168,1746462045934,1000.0,0.00018841,2]
[359983169,1746462173131,166.63,0.00019386,2]
[359983170,1746462176225,383.0527112,0.0003,30]
[359983171,1746462200343,-150.0,0.00019726,2]
[359983172,1746462200367,-305.154591,0.0001973,2]
[359983173,1746462200392,-150.0,0.00019741,2]
[359983174,1746462200415,-150.0,0.00019746,2]
[359983175,1746462200440,-150.0,0.00019748,2]
[359983176,1746462200467,-150.0,0.00019751,2]
[359983177,1746462200492,-271.24484543,0.00019754,2]
[359983178,1746462200515,-213.14676432,0.00019754,2]
[359983179,1746462200539,-150.0,0.00019765,2]
[359983180,1746462200562,-271.24484534,0.0001977,2]
[359983181,1746462200585,-150.0,0.00019775,2]
[359983182,1746462200606,-9161.25,0.00019775,2]
[359983183,1746462200628,-150.99,0.00019775,2]
[359983184,1746462200649,-6904.01,0.00019775,5]
[359983185,1746462200671,-9999.99,0.00019775,2]
[359983186,1746462200692,-2847.77,0.00019775,2]
[359983187,1746462200715,-9999.99,0.00019775,2]
[359983188,1746462200736,-9999.99,0.00019775,2]
[359983189,1746462200760,-150.0,0.00019778,2]
[359983190,1746462200784,-150.0,0.00019782,2]
[359983191,1746462200808,-150.0,0.00019784,2]
[359983192,1746462200831,-150.0,0.00019784,2]
[359983193,1746462200855,-271.24484534,0.00019786,2]
[359983194,1746462200880,-150.0,0.00019789,2]
[359983195,1746462200903,-150.0,0.00019789,2]
[359983196,1746462200928,-150.0,0.00019793,2]
[359983197,1746462200952,-150.0,0.00019795,2]
[359983198,1746462200976,-405.88114792,0.000198,2]
[359983199,1746462200998,-200.0,0.000198,2]
[359983200,1746462201022,-271.24484534,0.00019803,2]
[359983201,1746462201047,-150.0,0.00019804,2]
[359983202,1746462201072,-150.0,0.00019807,2]
[359983203,1746462201095,-150.0,0.00019811,2]
[359983204,1746462201123,-405.88114788,0.00019811,2]
[359983205,1746462201147,-271.24484534,0.00019819,2]
[359983206,1746462201170,-150.0,0.00019821,2]
[359983207,1746462201192,-405.88114788,0.00019822,2]
[359983208,1746462201215,-212.88909394,0.00019825,2]
[359983209,1746462201238,-150.0,0.00019829,2]
[359983210,1746462201261,-405.88114788,0.00019833,2]
[359983211,1746462201284,-271.24484534,0.00019835,2]
[359983212,1746462201307,-150.0,0.00019841,2]
[359983213,1746462201329,-207.4,0.00019842,2]
[359983214,1746462201351,-1200.0,0.00019843,2]
[359983215,1746462201372,-300.0,0.00019843,2]
[359983216,1746462201394,-228.68,0.00019844,2]
[359983217,1746462201415,-228.68,0.00019844,2]
[359983218,1746462201436,-450.0,0.00019844,2]
[359983219,1746462201458,-450.0,0.00019844,2]
[359983220,1746462201479,-1117.03,0.00019844,2]
[359983221,1746462201502,-450.0,0.00019844,2]
[359983222,1746462201525,-24612.03,0.00019844,2]
[359983223,1746462201546,-450.0,0.00019844,2]
[359983224,1746462201567,-450.0,0.00019844,2]
[359983225,1746462201588,-450.0,0.00019844,2]
[359983226,1746462201610,-450.0,0.00019844,2]
[359983227,1746462201631,-450.0,0.00019844,2]
[359983228,1746462201653,-1858.44,0.00019844,2]
[359983229,1746462201674,-8787.78,0.00019844,2]
[359983230,1746462201696,-485.84,0.00019844,2]
[359983231,1746462201718,-393.26758948,0.00019844,2]
[359983232,1746462201739,-532.42,0.00019844,2]
[359983233,1746462201762,-450.0,0.00019844,2]
[359983234,1746462201784,-450.0,0.00019844,2]
[359983235,1746462201806,-511.95,0.00019844,2]
[359983236,1746462201828,-450.0,0.00019844,2]
[359983237,1746462201851,-5075.93,0.00019844,2]
[359983238,1746462201874,-450.0,0.00019844,2]
[359983239,1746462201897,-450.0,0.00019844,2]
[359983240,1746462201920,-450.0,0.00019844,2]
[359983241,1746462201943,-450.0,0.00019844,2]
[359983242,1746462201970,-450.0,0.00019844,2]
[359983243,1746462201993,-450.0,0.00019844,2]
[359983244,1746462202016,-450.0,0.00019844,2]
[359983245,1746462202038,-450.0,0.00019844,2]
[359983246,1746462202059,-450.0,0.00019844,2]
[359983247,1746462202081,-450.0,0.00019844,2]
[359983248,1746462202106,-450.0,0.00019844,2]
[359983249,1746462202129,-450.0,0.00019844,2]
[359983250,1746462202151,-450.0,0.00019844,2]
[359983251,1746462202173,-480.25596567,0.00019844,2]
[359983252,1746462202196,-450.0,0.00019844,2]
[359983253,1746462202218,-485.88263199,0.00019844,2]
[359983254,1746462202240,-450.0,0.00019844,2]
[359983255,1746462202263,-450.0,0.00019844,2]
[359983256,1746462202285,-450.0,0.00019844,2]
[359983257,1746462202307,-450.0,0.00019844,2]
[359983258,1746462202328,-450.0,0.00019844,2]
[359983259,1746462202351,-450.0,0.00019844,2]
[359983260,1746462202373,-450.0,0.00019844,2]
[359983261,1746462202395,-450.0,0.00019844,2]
[359983262,1746462202419,-450.0,0.00019844,2]
[359983263,1746462202442,-450.0,0.00019844,2]
[359983264,1746462202466,-450.0,0.00019844,2]
[359983265,1746462202489,-450.0,0.00019844,2]
[359983266,1746462202510,-450.0,0.00019844,2]
[359983267,1746462202532,-521.09332413,0.00019844,2]
[359983268,1746462202553,-450.0,0.00019844,2]
[359983269,1746462202575,-527.29742973,0.00019844,2]
[359983270,1746462202596,-450.0,0.00019844,2]
[359983271,1746462202831,-450.0,0.00019844,2]
[359983272,1746462202855,-450.0,0.00019844,2]
[359983273,1746462202880,-450.0,0.00019844,2]
[359983274,1746462202902,-546.69437625,0.00019844,2]
[359983275,1746462202924,-554.08838263,0.00019844,2]
[359983276,1746462202946,-450.0,0.00019844,2]
[359983277,1746462202972,-450.0,0.00019844,2]
[359983278,1746462202996,-450.0,0.00019844,2]
[359983279,1746462203021,-405.88114788,0.00019844,2]
[359983280,1746462203046,-150.0,0.00019845,2]
[359983281,1746462203070,-228.68,0.00019845,2]
[359983282,1746462203092,-228.68,0.00019845,2]
[359983283,1746462203123,-500.0,0.00019851,2]
[359983284,1746462203153,-500.0,0.00019851,2]
[359983285,1746462203182,-500.0,0.00019851,2]
[359983286,1746462203211,-500.0,0.00019851,2]
[359983287,1746462203240,-500.0,0.00019851,2]
[359983288,1746462203268,-500.0,0.00019851,2]
[359983289,1746462203297,-500.0,0.00019851,2]
[359983290,1746462203326,-500.0,0.00019851,2]
[359983291,1746462203355,-500.0,0.00019851,2]
[359983292,1746462203383,-500.0,0.00019851,2]
[359983293,1746462203413,-500.0,0.00019851,2]
[359983294,1746462203442,-500.0,0.00019851,2]
[359983295,1746462203471,-500.0,0.00019851,2]
[359983296,1746462203500,-500.0,0.00019851,2]
[359983297,1746462203529,-500.0,0.00019851,2]
[359983298,1746462203560,-500.0,0.00019851,2]
[359983299,1746462203591,-500.0,0.00019851,2]
[359983300,1746462203620,-500.0,0.00019851,2]
[359983301,1746462203648,-500.0,0.00019851,2]
[359983302,1746462203678,-500.0,0.00019851,2]
[359983303,1746462203706,-500.0,0.00019851,2]
[359983304,1746462203735,-500.0,0.00019851,2]
[359983305,1746462203762,-196.44265026,0.00019851,2]
[359983306,1746462203795,-500.0,0.00019851,2]
[359983307,1746462203825,-500.0,0.00019851,2]
[359983308,1746462203854,-500.0,0.00019851,2]
[359983309,1746462203885,-390.52765752,0.00019851,2]
[359983310,1746462203909,-271.24484534,0.00019851,2]
[359983311,1746462203933,-450.0,0.00019852,2]
[359983312,1746462203956,-515.14,0.00019852,2]
[359983313,1746462203980,-1117.03,0.00019852,2]
[359983314,1746462204003,-450.0,0.00019852,2]
[359983315,1746462204027,-24612.03,0.00019852,2]
[359983316,1746462204053,-450.0,0.00019852,2]
[359983317,1746462204076,-450.0,0.00019852,2]
[359983318,1746462204099,-450.0,0.00019852,2]
[359983319,1746462204123,-450.0,0.00019852,2]
[359983320,1746462204146,-1858.44,0.00019852,2]
[359983321,1746462204170,-8787.78,0.00019852,2]
[359983322,1746462204192,-485.84,0.00019852,2]
[359983323,1746462204215,-532.42,0.00019852,2]
[359983324,1746462204238,-450.0,0.00019852,2]
[359983325,1746462204262,-450.0,0.00019852,2]
[359983326,1746462204285,-511.95,0.00019852,2]
[359983327,1746462204309,-5075.93,0.00019852,2]
[359983328,1746462204333,-450.0,0.00019852,2]
[359983329,1746462204355,-536.02,0.00019852,2]
[359983330,1746462204377,-222.33032389,0.00019852,2]
[359983331,1746462204399,-450.0,0.00019852,2]
[359983332,1746462204422,-450.0,0.00019852,2]
[359983333,1746462204444,-20880.67,0.00019852,2]
[359983334,1746462204467,-450.0,0.00019852,2]